[Event "Titled Tuesday Blitz August 31 2021"]
[White "Yordanov, Nikolay Plamenov"]
[Black "Quintiliano Pinto, Renato R."]
[WhiteFideId "2907445"]
[BlackFideId "2117568"]
[WhiteElo "2248"]
[BlackElo "2439"]
[Result "0-1"]
[Round "04"]
[TimeControl "180+1"]
[Date "2021.08.31"]
[WhiteClock "0:00:06"]
[BlackClock "0:00:16"]

1. d4 {[%clk 0:03:00]}  d5 {[%clk 0:02:59]} 2. Bf4 {[%clk 0:03:00]}  Nf6 {[%clk 0:02:59]} 3. e3 {[%clk 0:03:01]}  c5 {[%clk 0:02:59]} 4. Nf3 {[%clk 0:03:00]}  Nc6 {[%clk 0:02:59]} 5. Nbd2 {[%clk 0:03:00]}  e6 {[%clk 0:02:59]} 6. c3 {[%clk 0:02:57]}  Be7 {[%clk 0:02:59]} 7. Bd3 {[%clk 0:02:57]}  Nh5 {[%clk 0:02:58]} 8. Bg3 {[%clk 0:02:54]}  g6 {[%clk 0:02:58]} 9. Qe2 {[%clk 0:02:52]}  O-O {[%clk 0:02:57]} 10. O-O {[%clk 0:02:52]}  Nxg3 {[%clk 0:02:57]} 11. hxg3 {[%clk 0:02:52]}  Bd7 {[%clk 0:02:56]} 12. g4 {[%clk 0:02:52]}  Qc7 {[%clk 0:02:55]} 13. Bb5 {[%clk 0:02:47]}  a6 {[%clk 0:02:48]} 14. Bxc6 {[%clk 0:02:46]}  Bxc6 {[%clk 0:02:49]} 15. g5 {[%clk 0:02:46]}  Bb5 {[%clk 0:02:48]} 16. c4 {[%clk 0:02:33]}  dxc4 {[%clk 0:02:47]} 17. a4 {[%clk 0:02:33]}  Bc6 {[%clk 0:02:46]} 18. Qxc4 {[%clk 0:02:27]}  b5 {[%clk 0:02:38]} 19. axb5 {[%clk 0:02:08]}  Bxb5 {[%clk 0:02:35]} 20. Qc3 {[%clk 0:02:03]}  Bxf1 {[%clk 0:02:35]} 21. Rxf1 {[%clk 0:02:03]}  Rac8 {[%clk 0:02:33]} 22. Ne4 {[%clk 0:01:58]}  cxd4 {[%clk 0:02:32]} 23. Qxd4 {[%clk 0:01:58]}  Rfd8 {[%clk 0:02:28]} 24. Nf6+ {[%clk 0:01:54]}  Bxf6 {[%clk 0:02:26]} 25. Qxf6 {[%clk 0:01:55]}  Qc2 {[%clk 0:02:03]} 26. Qf4 {[%clk 0:01:37]}  Rd1 {[%clk 0:01:58]} 27. Rxd1 {[%clk 0:01:36]}  Qxd1+ {[%clk 0:01:59]} 28. Kh2 {[%clk 0:01:37]}  Qc2 {[%clk 0:01:45]} 29. Ne5 {[%clk 0:01:05]}  Qf5 {[%clk 0:01:09]} 30. Qg3 {[%clk 0:01:04]}  h6 {[%clk 0:01:00]} 31. f4 {[%clk 0:00:44]}  hxg5 {[%clk 0:00:55]} 32. fxg5 {[%clk 0:00:45]}  Kg7 {[%clk 0:00:39]} 33. Nf3 {[%clk 0:00:35]}  Rh8+ {[%clk 0:00:36]} 34. Kg1 {[%clk 0:00:35]}  Qb1+ {[%clk 0:00:36]} 35. Ne1 {[%clk 0:00:31]}  Qxb2 {[%clk 0:00:36]} 36. Qf4 {[%clk 0:00:25]}  Qa1 {[%clk 0:00:33]} 37. Kf2 {[%clk 0:00:23]}  Rc8 {[%clk 0:00:28]} 38. Nf3 {[%clk 0:00:23]}  Rc5 {[%clk 0:00:27]} 39. Qh4 {[%clk 0:00:20]}  Kg8 {[%clk 0:00:19]} 40. Qh2 {[%clk 0:00:18]}  Rc2+ {[%clk 0:00:17]} 41. Kg3 {[%clk 0:00:17]}  Qc3 {[%clk 0:00:17]} 42. Qg1 {[%clk 0:00:13]}  Qc7+ {[%clk 0:00:18]} 43. Kh3 {[%clk 0:00:11]}  Rc1 {[%clk 0:00:18]} 44. Qf2 {[%clk 0:00:11]}  Rh1+ {[%clk 0:00:17]} 45. Kg4 {[%clk 0:00:10]}  Qc4+ {[%clk 0:00:17]} 46. Nd4 {[%clk 0:00:09]}  Qd3 {[%clk 0:00:15]} 47. Qf6 {[%clk 0:00:07]}  Qe4+ {[%clk 0:00:14]} 48. Kg3 {[%clk 0:00:08]}  Qh4+ {[%clk 0:00:14]} 49. Kf3 {[%clk 0:00:07]}  Rf1+ {[%clk 0:00:15]} 50. Ke2 {[%clk 0:00:07]}  Rxf6 {[%clk 0:00:16]} 51. gxf6 {[%clk 0:00:06]}  Qxf6 {[%clk 0:00:16]} 0-1


[Site "https://www.chess.com"]

[Event "Titled Tuesday Blitz August 31 2021"]
[White "Zemach, Roee"]
[Black "Gutenev, Alexander"]
[WhiteFideId "2818531"]
[BlackFideId "4195540"]
[WhiteElo "2131"]
[BlackElo "2432"]
[Result "0-1"]
[Round "04"]
[TimeControl "180+1"]
[Date "2021.08.31"]
[WhiteClock "0:00:07"]
[BlackClock "0:01:21"]

1. d4 {[%clk 0:02:58]}  Nf6 {[%clk 0:02:59]} 2. Nf3 {[%clk 0:02:58]}  g6 {[%clk 0:02:59]} 3. Bf4 {[%clk 0:02:58]}  Bg7 {[%clk 0:02:59]} 4. e3 {[%clk 0:02:59]}  b6 {[%clk 0:03:00]} 5. Be2 {[%clk 0:02:57]}  Bb7 {[%clk 0:03:01]} 6. O-O {[%clk 0:02:58]}  O-O {[%clk 0:03:01]} 7. h3 {[%clk 0:02:58]}  d6 {[%clk 0:03:02]} 8. c3 {[%clk 0:02:56]}  Nbd7 {[%clk 0:03:02]} 9. Nbd2 {[%clk 0:02:53]}  Ne4 {[%clk 0:03:02]} 10. Bh2 {[%clk 0:02:49]}  e5 {[%clk 0:03:02]} 11. a4 {[%clk 0:02:46]}  a5 {[%clk 0:03:01]} 12. Nxe4 {[%clk 0:02:32]}  Bxe4 {[%clk 0:03:01]} 13. Nd2 {[%clk 0:02:28]}  Bb7 {[%clk 0:03:01]} 14. Bf3 {[%clk 0:02:28]}  Qc8 {[%clk 0:02:59]} 15. Qb3 {[%clk 0:02:17]}  Re8 {[%clk 0:02:54]} 16. Rfd1 {[%clk 0:02:01]}  h6 {[%clk 0:02:39]} 17. Bd5 {[%clk 0:01:53]}  Bxd5 {[%clk 0:02:33]} 18. Qxd5 {[%clk 0:01:54]}  Nf6 {[%clk 0:02:28]} 19. Qc6 {[%clk 0:01:50]}  Qd7 {[%clk 0:02:28]} 20. Qxd7 {[%clk 0:01:47]}  Nxd7 {[%clk 0:02:29]} 21. Nc4 {[%clk 0:01:47]}  f5 {[%clk 0:02:23]} 22. dxe5 {[%clk 0:01:30]}  Nxe5 {[%clk 0:02:23]} 23. Bxe5 {[%clk 0:01:20]}  Bxe5 {[%clk 0:02:23]} 24. g3 {[%clk 0:01:04]}  Kf7 {[%clk 0:02:23]} 25. Rd2 {[%clk 0:01:00]}  Bf6 {[%clk 0:02:23]} 26. Kg2 {[%clk 0:00:52]}  Re4 {[%clk 0:02:23]} 27. Rd4 {[%clk 0:00:34]}  Bxd4 {[%clk 0:02:22]} 28. cxd4 {[%clk 0:00:34]}  Re7 {[%clk 0:02:17]} 29. Rc1 {[%clk 0:00:33]}  Ke6 {[%clk 0:02:15]} 30. Na3 {[%clk 0:00:32]}  Kd7 {[%clk 0:02:14]} 31. h4 {[%clk 0:00:28]}  Ree8 {[%clk 0:02:13]} 32. Kf3 {[%clk 0:00:28]}  g5 {[%clk 0:02:11]} 33. h5 {[%clk 0:00:25]}  c6 {[%clk 0:02:06]} 34. Nc4 {[%clk 0:00:22]}  Reb8 {[%clk 0:02:06]} 35. d5 {[%clk 0:00:17]}  cxd5 {[%clk 0:02:03]} 36. Na3 {[%clk 0:00:18]}  Rc8 {[%clk 0:02:01]} 37. Rd1 {[%clk 0:00:18]}  Ke6 {[%clk 0:02:01]} 38. Nb5 {[%clk 0:00:19]}  Rc4 {[%clk 0:01:57]} 39. b3 {[%clk 0:00:17]}  Rc5 {[%clk 0:01:52]} 40. Rd3 {[%clk 0:00:16]}  Rac8 {[%clk 0:01:51]} 41. Nd4+ {[%clk 0:00:16]}  Ke5 {[%clk 0:01:50]} 42. Kg2 {[%clk 0:00:13]}  Ke4 {[%clk 0:01:42]} 43. Rd2 {[%clk 0:00:10]}  g4 {[%clk 0:01:42]} 44. Ne6 {[%clk 0:00:10]}  Rc2 {[%clk 0:01:42]} 45. Rd4+ {[%clk 0:00:10]}  Ke5 {[%clk 0:01:42]} 46. Nf4 {[%clk 0:00:10]}  R8c5 {[%clk 0:01:35]} 47. Nd3+ {[%clk 0:00:10]}  Kf6 {[%clk 0:01:35]} 48. Nxc5 {[%clk 0:00:10]}  Rxc5 {[%clk 0:01:34]} 49. b4 {[%clk 0:00:11]}  Rc4 {[%clk 0:01:28]} 50. bxa5 {[%clk 0:00:09]}  Rxd4 {[%clk 0:01:20]} 51. exd4 {[%clk 0:00:09]}  bxa5 {[%clk 0:01:21]} 52. f4 {[%clk 0:00:09]}  gxf3+ {[%clk 0:01:22]} 53. Kxf3 {[%clk 0:00:09]}  Kg5 {[%clk 0:01:22]} 54. Ke3 {[%clk 0:00:09]}  Kg4 {[%clk 0:01:20]} 55. Kf2 {[%clk 0:00:09]}  f4 {[%clk 0:01:20]} 56. gxf4 {[%clk 0:00:07]}  Kxf4 {[%clk 0:01:21]} 0-1


[Site "https://www.chess.com"]

[Event "Titled Tuesday Blitz August 31 2021"]
[White "ketster"]
[Black "Rustemov, Alexander"]
[BlackFideId "4119002"]
[WhiteElo "2535"]
[BlackElo "2763"]
[Result "1/2-1/2"]
[Round "04"]
[TimeControl "180+1"]
[Date "2021.08.31"]
[WhiteClock "0:00:09"]
[BlackClock "0:00:02"]

1. d4 {[%clk 0:03:00]}  d5 {[%clk 0:02:59]} 2. c4 {[%clk 0:02:59]}  e6 {[%clk 0:02:58]} 3. Nc3 {[%clk 0:02:58]}  Be7 {[%clk 0:02:58]} 4. cxd5 {[%clk 0:02:58]}  exd5 {[%clk 0:02:58]} 5. Bf4 {[%clk 0:02:59]}  c6 {[%clk 0:02:58]} 6. e3 {[%clk 0:02:59]}  Bf5 {[%clk 0:02:58]} 7. g4 {[%clk 0:02:59]}  Be6 {[%clk 0:02:57]} 8. Be2 {[%clk 0:02:50]}  Nd7 {[%clk 0:02:51]} 9. h3 {[%clk 0:02:39]}  f5 {[%clk 0:02:43]} 10. gxf5 {[%clk 0:02:33]}  Bxf5 {[%clk 0:02:41]} 11. Bh5+ {[%clk 0:02:32]}  g6 {[%clk 0:02:37]} 12. Bg4 {[%clk 0:02:31]}  Bxg4 {[%clk 0:02:27]} 13. hxg4 {[%clk 0:02:31]}  Bb4 {[%clk 0:01:55]} 14. Nf3 {[%clk 0:02:15]}  Qe7 {[%clk 0:01:48]} 15. Qb3 {[%clk 0:02:01]}  Ngf6 {[%clk 0:01:45]} 16. g5 {[%clk 0:01:49]}  Ne4 {[%clk 0:01:44]} 17. Ke2 {[%clk 0:01:33]}  Bxc3 {[%clk 0:01:39]} 18. bxc3 {[%clk 0:01:33]}  O-O {[%clk 0:01:34]} 19. c4 {[%clk 0:01:28]}  Rxf4 {[%clk 0:01:32]} 20. exf4 {[%clk 0:01:16]}  Ng3+ {[%clk 0:01:27]} 21. Kd2 {[%clk 0:01:14]}  Nxh1 {[%clk 0:01:26]} 22. Rxh1 {[%clk 0:01:14]}  Qe4 {[%clk 0:01:16]} 23. Qe3 {[%clk 0:01:03]}  Qf5 {[%clk 0:00:43]} 24. c5 {[%clk 0:00:47]}  Rf8 {[%clk 0:00:41]} 25. Re1 {[%clk 0:00:16]}  Qxf4 {[%clk 0:00:39]} 26. Qxf4 {[%clk 0:00:16]}  Rxf4 {[%clk 0:00:40]} 27. Re3 {[%clk 0:00:15]}  b6 {[%clk 0:00:38]} 28. cxb6 {[%clk 0:00:11]}  Nxb6 {[%clk 0:00:38]} 29. Ke2 {[%clk 0:00:12]}  Nc4 {[%clk 0:00:14]} 30. Re8+ {[%clk 0:00:11]}  Kf7 {[%clk 0:00:13]} 31. Ra8 {[%clk 0:00:12]}  Re4+ {[%clk 0:00:12]} 32. Kf1 {[%clk 0:00:12]}  a5 {[%clk 0:00:12]} 33. Rc8 {[%clk 0:00:10]}  Rf4 {[%clk 0:00:11]} 34. Ke2 {[%clk 0:00:07]}  Re4+ {[%clk 0:00:10]} 35. Kf1 {[%clk 0:00:07]}  Re6 {[%clk 0:00:10]} 36. Rc7+ {[%clk 0:00:07]}  Kg8 {[%clk 0:00:11]} 37. Rc8+ {[%clk 0:00:07]}  Kg7 {[%clk 0:00:10]} 38. Rc7+ {[%clk 0:00:08]}  Kg8 {[%clk 0:00:11]} 39. Rc8+ {[%clk 0:00:08]}  Kf7 {[%clk 0:00:11]} 40. Rc7+ {[%clk 0:00:09]}  Re7 {[%clk 0:00:12]} 41. Rxc6 {[%clk 0:00:09]}  Rb7 {[%clk 0:00:12]} 42. Rc5 {[%clk 0:00:09]}  Ke6 {[%clk 0:00:11]} 43. Rc6+ {[%clk 0:00:08]}  Kf5 {[%clk 0:00:11]} 44. Rc5 {[%clk 0:00:08]}  Ke4 {[%clk 0:00:11]} 45. Kg2 {[%clk 0:00:08]}  Rb2 {[%clk 0:00:10]} 46. Rc7 {[%clk 0:00:08]}  Ne3+ {[%clk 0:00:11]} 47. Kg3 {[%clk 0:00:09]}  Nf5+ {[%clk 0:00:11]} 48. Kg2 {[%clk 0:00:09]}  Ne3+ {[%clk 0:00:10]} 49. Kg3 {[%clk 0:00:09]}  Nf5+ {[%clk 0:00:10]} 50. Kg2 {[%clk 0:00:10]}  Nxd4 {[%clk 0:00:11]} 51. Re7+ {[%clk 0:00:10]}  Kd3 {[%clk 0:00:09]} 52. Ne5+ {[%clk 0:00:07]}  Kd2 {[%clk 0:00:08]} 53. Rd7 {[%clk 0:00:04]}  Rxa2 {[%clk 0:00:08]} 54. Rxd5 {[%clk 0:00:04]}  Kc3 {[%clk 0:00:08]} 55. Rc5+ {[%clk 0:00:03]}  Kb3 {[%clk 0:00:09]} 56. Rc7 {[%clk 0:00:03]}  a4 {[%clk 0:00:09]} 57. Rxh7 {[%clk 0:00:04]}  Nf5 {[%clk 0:00:08]} 58. Ra7 {[%clk 0:00:04]}  a3 {[%clk 0:00:08]} 59. Nxg6 {[%clk 0:00:04]}  Ra1 {[%clk 0:00:08]} 60. Ne5 {[%clk 0:00:05]}  a2 {[%clk 0:00:08]} 61. Nd3 {[%clk 0:00:05]}  Kc3 {[%clk 0:00:08]} 62. Nc5 {[%clk 0:00:05]}  Nd4 {[%clk 0:00:07]} 63. g6 {[%clk 0:00:05]}  Nf5 {[%clk 0:00:06]} 64. Ne4+ {[%clk 0:00:05]}  Kb2 {[%clk 0:00:06]} 65. Nc5 {[%clk 0:00:05]}  Rc1 {[%clk 0:00:05]} 66. Nd3+ {[%clk 0:00:04]}  Kb1 {[%clk 0:00:03]} 67. Nxc1 {[%clk 0:00:05]}  a1=Q {[%clk 0:00:03]} 68. Rxa1+ {[%clk 0:00:05]}  Kxa1 {[%clk 0:00:04]} 69. Nd3 {[%clk 0:00:06]}  Nh4+ {[%clk 0:00:04]} 70. Kh3 {[%clk 0:00:05]}  Nxg6 {[%clk 0:00:05]} 71. Kg4 {[%clk 0:00:05]}  Kb1 {[%clk 0:00:06]} 72. Nf4 {[%clk 0:00:06]}  Ne5+ {[%clk 0:00:05]} 73. Kf5 {[%clk 0:00:06]}  Nf3 {[%clk 0:00:05]} 74. Nd5 {[%clk 0:00:06]}  Kc2 {[%clk 0:00:05]} 75. Kf4 {[%clk 0:00:07]}  Ne1 {[%clk 0:00:04]} 76. Ne3+ {[%clk 0:00:07]}  Kd2 {[%clk 0:00:04]} 77. Ke4 {[%clk 0:00:08]}  Ke2 {[%clk 0:00:04]} 78. f4 {[%clk 0:00:08]}  Nf3 {[%clk 0:00:03]} 79. f5 {[%clk 0:00:08]}  Nh4 {[%clk 0:00:03]} 80. f6 {[%clk 0:00:08]}  Ng6 {[%clk 0:00:03]} 81. Nf5 {[%clk 0:00:08]}  Nf8 {[%clk 0:00:03]} 82. Ne7 {[%clk 0:00:08]}  Kf2 {[%clk 0:00:03]} 83. Kf5 {[%clk 0:00:08]}  Ke3 {[%clk 0:00:03]} 84. Ng6 {[%clk 0:00:09]}  Nd7 {[%clk 0:00:03]} 85. Ke6 {[%clk 0:00:09]}  Nxf6 {[%clk 0:00:02]} 1/2-1/2


[Site "https://www.chess.com"]

[Event "Titled Tuesday Blitz August 31 2021"]
[White "Alavkin, Arseny"]
[Black "Erdogdu, Mert"]
[WhiteFideId "4120612"]
[BlackFideId "6301495"]
[WhiteElo "2391"]
[BlackElo "2485"]
[Result "0-1"]
[Round "05"]
[TimeControl "180+1"]
[Date "2021.08.31"]
[WhiteClock "0:00:20"]
[BlackClock "0:00:13"]

1. d4 {[%clk 0:03:00]}  d5 {[%clk 0:02:59]} 2. c4 {[%clk 0:02:59]}  e6 {[%clk 0:03:00]} 3. Nc3 {[%clk 0:02:59]}  c5 {[%clk 0:03:00]} 4. cxd5 {[%clk 0:02:57]}  exd5 {[%clk 0:03:01]} 5. Nf3 {[%clk 0:02:57]}  Nc6 {[%clk 0:03:01]} 6. g3 {[%clk 0:02:56]}  Nf6 {[%clk 0:03:01]} 7. Bg2 {[%clk 0:02:56]}  Be7 {[%clk 0:03:02]} 8. O-O {[%clk 0:02:56]}  O-O {[%clk 0:03:02]} 9. Bg5 {[%clk 0:02:53]}  cxd4 {[%clk 0:03:01]} 10. Nxd4 {[%clk 0:02:54]}  h6 {[%clk 0:02:59]} 11. Be3 {[%clk 0:02:51]}  Re8 {[%clk 0:02:58]} 12. Nb3 {[%clk 0:02:50]}  Be6 {[%clk 0:02:42]} 13. Rc1 {[%clk 0:02:49]}  Qd7 {[%clk 0:02:38]} 14. Nc5 {[%clk 0:02:47]}  Bxc5 {[%clk 0:02:37]} 15. Bxc5 {[%clk 0:02:47]}  Rad8 {[%clk 0:02:34]} 16. Re1 {[%clk 0:02:46]}  d4 {[%clk 0:02:27]} 17. Na4 {[%clk 0:02:46]}  Bh3 {[%clk 0:02:04]} 18. Bh1 {[%clk 0:02:39]}  Qf5 {[%clk 0:01:57]} 19. Qd3 {[%clk 0:02:34]}  Ne4 {[%clk 0:01:46]} 20. Bf3 {[%clk 0:02:33]}  Qg6 {[%clk 0:01:29]} 21. b3 {[%clk 0:02:22]}  Bf5 {[%clk 0:01:27]} 22. Qd1 {[%clk 0:02:22]}  b5 {[%clk 0:01:10]} 23. Nb2 {[%clk 0:02:21]}  Nc3 {[%clk 0:01:10]} 24. Qd2 {[%clk 0:02:19]}  Nxa2 {[%clk 0:01:05]} 25. Ra1 {[%clk 0:02:18]}  Nc3 {[%clk 0:01:05]} 26. Bxa7 {[%clk 0:02:18]}  Ne5 {[%clk 0:01:00]} 27. Bxd4 {[%clk 0:02:08]}  Nxf3+ {[%clk 0:00:57]} 28. exf3 {[%clk 0:02:08]}  Rxe1+ {[%clk 0:00:44]} 29. Qxe1 {[%clk 0:02:07]}  Rxd4 {[%clk 0:00:40]} 30. Qxc3 {[%clk 0:02:07]}  Qd6 {[%clk 0:00:37]} 31. Qe1 {[%clk 0:01:52]}  Be6 {[%clk 0:00:36]} 32. Qc3 {[%clk 0:01:43]}  Rb4 {[%clk 0:00:31]} 33. Ra3 {[%clk 0:01:21]}  Rd4 {[%clk 0:00:27]} 34. Ra1 {[%clk 0:01:17]}  Bh3 {[%clk 0:00:23]} 35. Qc2 {[%clk 0:01:10]}  Qd5 {[%clk 0:00:21]} 36. Qc3 {[%clk 0:00:55]}  Rd2 {[%clk 0:00:19]} 37. Rc1 {[%clk 0:00:45]}  Rxb2 {[%clk 0:00:18]} 38. Qe3 {[%clk 0:00:20]}  Rxb3 {[%clk 0:00:15]} 39. Qf4 {[%clk 0:00:20]}  Rxf3 {[%clk 0:00:14]} 40. Qh4 {[%clk 0:00:20]}  Rc3 {[%clk 0:00:13]} 0-1


[Site "https://www.chess.com"]

[Event "Titled Tuesday Blitz August 31 2021"]
[White "Andreikin, Dmitry"]
[Black "Hansen, Sune Berg"]
[WhiteFideId "4158814"]
[BlackFideId "1400266"]
[WhiteElo "2782"]
[BlackElo "2721"]
[Result "1-0"]
[Round "05"]
[TimeControl "180+1"]
[Date "2021.08.31"]
[WhiteClock "0:00:47"]
[BlackClock "0:00:18"]

1. Nf3 {[%clk 0:03:00]}  d5 {[%clk 0:02:59]} 2. e3 {[%clk 0:02:59]}  Nf6 {[%clk 0:02:58]} 3. c4 {[%clk 0:02:59]}  e6 {[%clk 0:02:58]} 4. Nc3 {[%clk 0:02:59]}  Be7 {[%clk 0:02:57]} 5. b3 {[%clk 0:02:57]}  O-O {[%clk 0:02:57]} 6. Bb2 {[%clk 0:02:57]}  c5 {[%clk 0:02:56]} 7. cxd5 {[%clk 0:02:54]}  exd5 {[%clk 0:02:56]} 8. d4 {[%clk 0:02:55]}  Nc6 {[%clk 0:02:56]} 9. Be2 {[%clk 0:02:53]}  Ne4 {[%clk 0:02:55]} 10. dxc5 {[%clk 0:02:41]}  Bf6 {[%clk 0:02:26]} 11. Rc1 {[%clk 0:02:40]}  Qa5 {[%clk 0:02:21]} 12. Nd4 {[%clk 0:02:40]}  Nxc5 {[%clk 0:01:49]} 13. Nxc6 {[%clk 0:02:23]}  bxc6 {[%clk 0:01:48]} 14. O-O {[%clk 0:02:23]}  Ne6 {[%clk 0:01:36]} 15. Qe1 {[%clk 0:02:14]}  Qd8 {[%clk 0:01:22]} 16. Qd2 {[%clk 0:02:00]}  Bd7 {[%clk 0:01:14]} 17. Rfd1 {[%clk 0:01:56]}  Re8 {[%clk 0:01:13]} 18. Na4 {[%clk 0:01:49]}  Bxb2 {[%clk 0:01:11]} 19. Qxb2 {[%clk 0:01:50]}  Qg5 {[%clk 0:01:09]} 20. Bf3 {[%clk 0:01:50]}  h5 {[%clk 0:01:06]} 21. Nc5 {[%clk 0:01:41]}  Nxc5 {[%clk 0:01:06]} 22. Rxc5 {[%clk 0:01:42]}  h4 {[%clk 0:01:06]} 23. Qd4 {[%clk 0:01:34]}  h3 {[%clk 0:01:03]} 24. g3 {[%clk 0:01:33]}  a5 {[%clk 0:00:55]} 25. Qf4 {[%clk 0:00:57]}  Qg6 {[%clk 0:00:51]} 26. e4 {[%clk 0:00:57]}  dxe4 {[%clk 0:00:20]} 27. Rg5 {[%clk 0:00:50]}  Qe6 {[%clk 0:00:18]} 28. Bg4 {[%clk 0:00:47]} 1-0


[Site "https://www.chess.com"]

[Event "Titled Tuesday Blitz August 31 2021"]
[White "Assaubayeva, Bibisara"]
[Black "Ovezdurdyyeva, Jemal"]
[WhiteFideId "13708694"]
[BlackFideId "14001888"]
[WhiteElo "2232"]
[BlackElo "1946"]
[Result "0-1"]
[Round "05"]
[TimeControl "180+1"]
[Date "2021.08.31"]
[WhiteClock "0:00:03"]
[BlackClock "0:00:16"]

1. c4 {[%clk 0:03:00]}  Nf6 {[%clk 0:02:53]} 2. Nc3 {[%clk 0:02:55]}  g6 {[%clk 0:02:54]} 3. e4 {[%clk 0:02:54]}  d6 {[%clk 0:02:53]} 4. d4 {[%clk 0:02:54]}  Bg7 {[%clk 0:02:53]} 5. Be2 {[%clk 0:02:55]}  O-O {[%clk 0:02:52]} 6. Be3 {[%clk 0:02:55]}  e5 {[%clk 0:02:47]} 7. d5 {[%clk 0:02:54]}  a5 {[%clk 0:02:40]} 8. g4 {[%clk 0:02:52]}  Na6 {[%clk 0:02:34]} 9. h4 {[%clk 0:02:52]}  c6 {[%clk 0:02:30]} 10. h5 {[%clk 0:02:47]}  cxd5 {[%clk 0:02:27]} 11. cxd5 {[%clk 0:02:47]}  Nc5 {[%clk 0:02:22]} 12. f3 {[%clk 0:02:47]}  Bd7 {[%clk 0:02:15]} 13. Qd2 {[%clk 0:02:43]}  Rc8 {[%clk 0:02:06]} 14. Nh3 {[%clk 0:02:39]}  gxh5 {[%clk 0:02:01]} 15. g5 {[%clk 0:02:23]}  Ne8 {[%clk 0:02:00]} 16. Nf2 {[%clk 0:02:20]}  f5 {[%clk 0:01:54]} 17. gxf6 {[%clk 0:02:02]}  Nxf6 {[%clk 0:01:51]} 18. Rg1 {[%clk 0:01:56]}  Kh8 {[%clk 0:01:43]} 19. Nd3 {[%clk 0:01:41]}  Nxd3+ {[%clk 0:01:36]} 20. Bxd3 {[%clk 0:01:42]}  h4 {[%clk 0:01:34]} 21. Bh6 {[%clk 0:01:23]}  Nh5 {[%clk 0:01:26]} 22. Bxg7+ {[%clk 0:01:19]}  Nxg7 {[%clk 0:01:26]} 23. O-O-O {[%clk 0:01:18]}  Qf6 {[%clk 0:01:25]} 24. Kb1 {[%clk 0:01:13]}  h3 {[%clk 0:01:23]} 25. Bb5 {[%clk 0:01:01]}  Rxc3 {[%clk 0:01:01]} 26. Bxd7 {[%clk 0:00:49]}  Rxf3 {[%clk 0:01:00]} 27. Qxa5 {[%clk 0:00:45]}  Qf4 {[%clk 0:00:51]} 28. Qc7 {[%clk 0:00:24]}  Qxe4+ {[%clk 0:00:50]} 29. Ka1 {[%clk 0:00:24]}  h2 {[%clk 0:00:32]} 30. Rxg7 {[%clk 0:00:19]}  h1=Q {[%clk 0:00:26]} 31. Ba4 {[%clk 0:00:09]}  Rf1 {[%clk 0:00:19]} 32. Rg1 {[%clk 0:00:03]}  Qxg1 {[%clk 0:00:16]} 0-1


[Site "https://www.chess.com"]

[Event "Titled Tuesday Blitz August 31 2021"]
[White "Bacrot, Etienne"]
[Black "Ulko, Jaroslav"]
[WhiteFideId "605506"]
[BlackFideId "4116658"]
[WhiteElo "2673"]
[BlackElo "2304"]
[Result "1-0"]
[Round "05"]
[TimeControl "180+1"]
[Date "2021.08.31"]
[WhiteClock "0:00:29"]
[BlackClock "0:00:03"]

1. e4 {[%clk 0:02:59]}  c5 {[%clk 0:02:56]} 2. Nf3 {[%clk 0:02:59]}  e6 {[%clk 0:02:44]} 3. g3 {[%clk 0:02:57]}  Nc6 {[%clk 0:02:43]} 4. Bg2 {[%clk 0:02:57]}  Nf6 {[%clk 0:02:36]} 5. Nc3 {[%clk 0:02:53]}  e5 {[%clk 0:02:29]} 6. d3 {[%clk 0:02:48]}  h6 {[%clk 0:02:26]} 7. O-O {[%clk 0:02:39]}  d6 {[%clk 0:02:26]} 8. Nh4 {[%clk 0:02:36]}  g6 {[%clk 0:02:15]} 9. f4 {[%clk 0:02:29]}  exf4 {[%clk 0:02:14]} 10. gxf4 {[%clk 0:02:20]}  Bg4 {[%clk 0:02:13]} 11. Qe1 {[%clk 0:02:08]}  Nd4 {[%clk 0:02:06]} 12. e5 {[%clk 0:01:54]}  dxe5 {[%clk 0:01:39]} 13. fxe5 {[%clk 0:01:48]}  Nh5 {[%clk 0:01:36]} 14. Ne4 {[%clk 0:01:26]}  Nxc2 {[%clk 0:01:01]} 15. Qf2 {[%clk 0:01:15]}  Qd4 {[%clk 0:00:58]} 16. Rb1 {[%clk 0:01:08]}  Qxf2+ {[%clk 0:00:50]} 17. Nxf2 {[%clk 0:01:08]}  Bc8 {[%clk 0:00:23]} 18. Bd2 {[%clk 0:00:54]}  Be7 {[%clk 0:00:22]} 19. Nf3 {[%clk 0:00:54]}  Be6 {[%clk 0:00:16]} 20. Rbc1 {[%clk 0:00:49]}  Nb4 {[%clk 0:00:12]} 21. a3 {[%clk 0:00:39]}  Nc6 {[%clk 0:00:11]} 22. Ne4 {[%clk 0:00:39]}  Kf8 {[%clk 0:00:04]} 23. Nxc5 {[%clk 0:00:39]}  Kg7 {[%clk 0:00:03]} 24. Nxb7 {[%clk 0:00:36]}  Rac8 {[%clk 0:00:02]} 25. Nd6 {[%clk 0:00:35]}  Bxd6 {[%clk 0:00:02]} 26. exd6 {[%clk 0:00:35]}  Rhd8 {[%clk 0:00:03]} 27. Bc3+ {[%clk 0:00:31]}  Kh7 {[%clk 0:00:03]} 28. Ne5 {[%clk 0:00:29]} 1-0


[Site "https://www.chess.com"]

[Event "Titled Tuesday Blitz August 31 2021"]
[White "Begunov, Konstantin"]
[Black "Mirzoev, Azer"]
[WhiteFideId "4118510"]
[BlackFideId "13400304"]
[WhiteElo "2262"]
[BlackElo "2525"]
[Result "0-1"]
[Round "05"]
[TimeControl "180+1"]
[Date "2021.08.31"]
[WhiteClock "0:00:02"]
[BlackClock "0:00:10"]

1. d4 {[%clk 0:03:00]}  Nf6 {[%clk 0:02:59]} 2. c4 {[%clk 0:03:00]}  c5 {[%clk 0:02:59]} 3. Nf3 {[%clk 0:03:00]}  cxd4 {[%clk 0:02:59]} 4. Nxd4 {[%clk 0:03:01]}  Qc7 {[%clk 0:02:59]} 5. Nc3 {[%clk 0:02:50]}  a6 {[%clk 0:02:56]} 6. e4 {[%clk 0:02:46]}  e6 {[%clk 0:02:55]} 7. Be3 {[%clk 0:02:34]}  Bb4 {[%clk 0:02:53]} 8. f3 {[%clk 0:02:17]}  Nc6 {[%clk 0:02:49]} 9. Rc1 {[%clk 0:02:14]}  O-O {[%clk 0:02:47]} 10. Be2 {[%clk 0:02:13]}  b6 {[%clk 0:02:45]} 11. O-O {[%clk 0:02:10]}  Bd6 {[%clk 0:02:44]} 12. g3 {[%clk 0:01:34]}  Bc5 {[%clk 0:02:41]} 13. Kg2 {[%clk 0:01:26]}  Bb7 {[%clk 0:02:36]} 14. a3 {[%clk 0:01:22]}  Ne5 {[%clk 0:02:20]} 15. Qd2 {[%clk 0:01:07]}  Rfd8 {[%clk 0:02:13]} 16. Rfd1 {[%clk 0:01:06]}  Rac8 {[%clk 0:02:13]} 17. Na4 {[%clk 0:00:46]}  Nxe4 {[%clk 0:00:53]} 18. fxe4 {[%clk 0:00:45]}  Bxe4+ {[%clk 0:00:53]} 19. Kg1 {[%clk 0:00:41]}  Qb7 {[%clk 0:00:53]} 20. b4 {[%clk 0:00:19]}  Be7 {[%clk 0:00:51]} 21. Rf1 {[%clk 0:00:16]}  Nxc4 {[%clk 0:00:30]} 22. Bxc4 {[%clk 0:00:15]}  Rxc4 {[%clk 0:00:30]} 23. Rxc4 {[%clk 0:00:14]}  b5 {[%clk 0:00:29]} 24. Rcc1 {[%clk 0:00:06]}  bxa4 {[%clk 0:00:29]} 25. Qf2 {[%clk 0:00:04]}  f5 {[%clk 0:00:20]} 26. Ne2 {[%clk 0:00:04]}  h6 {[%clk 0:00:18]} 27. Bc5 {[%clk 0:00:04]}  Bf6 {[%clk 0:00:17]} 28. Nf4 {[%clk 0:00:04]}  Bg5 {[%clk 0:00:14]} 29. Nh5 {[%clk 0:00:03]}  Bxc1 {[%clk 0:00:13]} 30. Rxc1 {[%clk 0:00:03]}  d6 {[%clk 0:00:12]} 31. Bd4 {[%clk 0:00:03]}  e5 {[%clk 0:00:11]} 32. Bb2 {[%clk 0:00:03]}  Rc8 {[%clk 0:00:11]} 33. Rd1 {[%clk 0:00:02]}  Rc2 {[%clk 0:00:10]} 34. Rd2 {[%clk 0:00:01]}  Rxd2 {[%clk 0:00:10]} 35. Qxd2 {[%clk 0:00:02]}  Qc6 {[%clk 0:00:10]} 0-1


[Site "https://www.chess.com"]